Cogmind - Beta 13 @@@ ROGUE MODE // 2024.04.05 @ 21:29:43 Player: graour Result: Destroyed by Y-54 Guardian with Flak Gun Performance ------------- Evolutions (4) 2000 Regions Visited (4) 800 Robots Destroyed (85) 425 Value Destroyed (1480) 1480 Prototype IDs (1) 20 Alien Tech Used (0) 0 Bonus (-1) -1 TOTAL SCORE: 4724 Bonus ------- High Alert Combat Kills 22 Friendly Fire -23 Cogmind --------- Core Integrity 0/850 Matter 283/300 Energy 300/300 System Corruption 1% Temperature Hot (267) Movement Core (250) Ox4 Location -6/Factory Parts ------- > --- POWER (3) -------- Angular Momentum Engine > --- PROPULSION (3) --- (None) > --- UTILITY (5) ------ Target Analyzer > --- WEAPON (4) ------- (None) > --- INVENTORY (5) ---- (None) Peak State ------------ > --- POWER ------------ Light Ion Engine Light Nuclear Core > --- PROPULSION ------- Carbon-fiber Leg VSS Leg Makeshift Leg > --- UTILITY ---------- Scrap Engine Hardened Medium Armor Plating Improved Medium Armor Plating > --- WEAPON ----------- Beamcaster Heavy Particle Cannon Flak Cannon EMP Blaster > --- INVENTORY -------- (None) [Rating: 50] Favorites ----------- Power Light Angular Momentum Engine Engine Light Angular Momentum Engine Power Core Light Nuclear Core Propulsion Carbon-fiber Leg Leg Carbon-fiber Leg Wheel Compact Wheel Utility Structural Scanner Device Structural Scanner Storage Small Storage Unit Processor Transport Network Coupler Protection Improved Medium Armor Plating Weapon Improved Light Cannon Energy Gun Beamcaster Energy Cannon Heavy Particle Cannon Ballistic Gun Light Assault Rifle Ballistic Cannon Improved Light Cannon Launcher Grenade Launcher Build | -11 -10 -10 -8 -6 ------- Run | Yrd Mat Sub Rec Fac Slots Evolved 8 | . . . . 8 Power 2 | . . . . 2 Propulsion 1 | . . . . 1 Utility 3 | . . . . 3 Weapon 2 | . . . . 2 Parts Attached 47 | 7 5 15 6 14 Power 9 | 1 1 2 2 3 Engine 7 | 1 1 2 1 2 Core 2 | . . . 1 1 Reactor . | . . . . . Propulsion 7 | 2 . 2 1 2 Treads . | . . . . . Leg 6 | 2 . 2 1 1 Wheel 1 | . . . . 1 Hover . | . . . . . Flight . | . . . . . Utility 14 | 2 2 4 1 5 Device 7 | 1 1 2 1 2 Storage 1 | 1 . . . . Processor 2 | . 1 . . 1 Hackware . | . . . . . Protection 4 | . . 2 . 2 Artifact . | . . . . . Weapon 17 | 2 2 7 2 4 Energy Gun 5 | . . 4 . 1 Energy Cannon 2 | . . . . 2 Ballistic Gun 2 | 2 . . . . Ballistic Cannon 4 | . 2 1 1 . Launcher 4 | . . 2 1 1 Special Weapon . | . . . . . Impact Weapon . | . . . . . Slashing Weapon . | . . . . . Piercing Weapon . | . . . . . Special Melee Weapon . | . . . . . Unidentified Prototypes 1 | . . . . 1 Parts Lost 24 | . . 6 . 18 Power 5 | . . 2 . 3 Propulsion 4 | . . . . 4 Utility 6 | . . 1 . 5 Weapon 9 | . . 3 . 6 Highest Loss Streak 6 | . . 2 . 6 To Critical Strikes . | . . . . . Average Slot Usage (%) 82 | . 99 86 85 37 Engine 11 | . 14 13 11 . Core 1 | . . . 2 4 Leg 24 | . 28 28 28 2 Device 13 | . 14 15 14 7 Storage 1 | . 5 . . . Processor 2 | . 8 . . . Protection 1 | . . . . 6 Energy Gun 8 | . . 14 14 3 Ballistic Cannon 14 | . 26 10 11 3 Launcher 1 | . . 2 2 . Naked Turns 17 | . . . . 17 Heaviest Build 45 | 12 17 29 24 45 Greatest Support 47 | 20 20 30 30 47 Greatest Overweight (x) 12 | . . 1 1 12 Average Overweight (x) . | . . . . 2 Largest Inventory Capacity 8 | 8 8 5 5 5 Average Capacity 5 | 6 6 5 5 5 Most Carried 5 | 2 5 5 5 4 Average Carried 3 | 1 4 3 4 . Final Capacity 8 | 8 5 5 5 5 Final Carried 5 | 2 5 5 5 . Class Distribution -------------------- 55% | Mutant 36% | Scavenger-Mutant 6% | Tank Dominant Class ---------------- Mutant | -10/Materials Scavenger-Mutant | -10/Subcaves Mutant | -8/Recycling Mutant | -6/Factory Resources | -11 -10 -10 -8 -6 ----------- Run | Yrd Mat Sub Rec Fac Matter Collected 2269 | 266 839 516 441 207 Remotely 441 | 73 368 . . . Salvage Created 2700 | 89 848 335 938 490 Parts 141 | 1 78 23 25 14 Haulers Intercepted 1 | . 1 . . . Recyclers Shooed 15 | . 5 . 8 2 Parts Field Recycled . | . . . . . Retrieved Matter . | . . . . . Parts Self-Destructed 9 | . . 9 . . Prevented . | . . . . . Kills | -11 -10 -10 -8 -6 ------- Run | Yrd Mat Sub Rec Fac Combat Hostiles Destroyed 30 | . 8 14 2 6 Guns 8 | . . 6 2 . Cannons 17 | . 8 3 . 6 AOE 5 | . . 5 . . Classes Destroyed 14 | 1 8 2 1 2 Worker 12 | . 11 . . 1 Builder 11 | . 10 . 1 . Tunneler 3 | . 3 . . . Hauler 1 | . 1 . . . Recycler 23 | 1 7 . 14 1 Operator 1 | . 1 . . . Turret 2 | . . 2 . . Watcher 2 | . 2 . . . Swarmer 7 | . 3 4 . . Grunt 10 | . 5 1 . 4 Duelist 1 | . . . . 1 Sentry 2 | . . . 2 . Programmer 1 | . . . . 1 Subdweller 9 | . . 9 . . Best Kill Streak 6 | 1 6 6 6 1 Combat Bots Only 4 | . 3 4 2 1 Max Kills in Single Turn 3 | 1 1 3 2 1 Gunslinging . | . . . . . Exploded 3 | . . 3 . . Melee . | . . . . . Uniques/NPCs Destroyed . | . . . . . Combat | -11 -10 -10 -8 -6 -------- Run | Yrd Mat Sub Rec Fac Hostile Shots Fired 407 | . 46 123 4 234 Missed 144 | . 15 49 1 79 Damage Taken 3545 | . 279 1055 83 2128 Core 1097 | . 28 199 15 855 Absorbed by Shields . | . . . . . Core Remaining (%) 51 | 100 . . 3 . Volleys Fired 229 | 3 98 55 25 48 Largest 4 | 2 2 2 2 4 Hottest 227 | 40 78 150 119 227 Shots Fired 428 | 6 196 94 49 83 Gun 90 | 6 . 35 26 23 Cannon 310 | . 196 48 9 57 Launcher 28 | . . 11 14 3 Special . | . . . . . Kinetic 290 | 6 196 48 23 17 Thermal 116 | . . 35 26 55 Explosive 11 | . . 11 . . Electromagnetic 11 | . . . . 11 Robot Hit Streak 12 | 5 7 10 12 6 Robot Miss Streak 9 | . 9 4 6 9 Penetration Max . | . . . . . Secondary Targets . | . . . . . Shots Hit Robots 228 | 5 94 49 31 49 Core Hits 135 | 2 43 31 24 35 Critical Kills . | . . . . . Critical Parts Destroyed . | . . . . . Critical Strikes 7 | . 3 2 2 . Burn 3 | . . 1 2 . Blast 4 | . 3 1 . . Melee Attacks . | . . . . . Impact . | . . . . . Slashing . | . . . . . Piercing . | . . . . . Sneak Attacks . | . . . . . Combat Hostiles . | . . . . . Follow-up Attacks . | . . . . . Damage Inflicted 5830 | 50 2015 1371 1190 1204 Guns 969 | 50 . 372 333 214 Cannons 3612 | . 2011 565 128 908 Explosions 1239 | . . 434 727 78 Melee . | . . . . . Ramming 10 | . 4 . 2 4 Kinetic 3731 | 50 2011 565 855 250 Thermal 1471 | . . 372 333 766 Explosive 434 | . . 434 . . Electromagnetic 184 | . . . . 184 Impact . | . . . . . Slashing . | . . . . . Piercing . | . . . . . Highest Corruption 3 | . 3 3 3 1 Average Corruption 2 | . 2 3 3 1 Corruption Purged . | . . . . . Corruption Blocked . | . . . . . Effects 40 | . 2 20 16 2 Message Errors 7 | . 1 2 4 . Matter Fused 19 | . . 11 8 . Heat Flow Errors 2 | . 1 . . 1 Energy Discharges 3 | . . 3 . . Parts Rejected 2 | . . 2 . . Data Loss (minor) 4 | . . 1 2 1 Data Loss (major) 1 | . . . 1 . Misfires 2 | . . 1 1 . Overload Shots . | . . . . . Overflow Damage 127 | . 57 3 52 15 Projectiles 72 | . 57 . . 15 Explosions 55 | . . 3 52 . Melee . | . . . . . Knockbacks 43 | . 22 10 5 6 Impact . | . . . . . Kinetic 43 | . 22 10 5 6 Secondary . | . . . . . Self-Inflicted Damage 75 | . . 17 34 24 Shots 5 | . . 2 1 2 Rammed 4 | . . . . 4 Targets Rammed 7 | . 2 . 1 4 Kicked 3 | . 2 . 1 . Crushed . | . . . . . Highest Temperature 805 | . 252 72 535 805 Average Temperature 111 | . 55 24 140 278 Received Heat Transfer 1299 | . 51 327 9 912 Effects 17 | . . . 4 13 Shutdowns 5 | . . . . 5 Energy Bleed 2 | . . . 2 . Interference 1 | . . . . 1 Matter Decay 1 | . . . . 1 Short Circuit 2 | . . . 2 . Damage (minor) 3 | . . . . 3 Damage (major) 3 | . . . . 3 Siege Activations . | . . . . . Robots Corrupted . | . . . . . Combat Hostiles . | . . . . . Parts Fried . | . . . . . Impact Corruptions . | . . . . . Robots Melted . | . . . . . Combat Hostiles . | . . . . . Parts Melted . | . . . . . Heat Transferred 2590 | . . 740 740 1110 Parts Sabotaged . | . . . . . Parts Stolen . | . . . . . Parts Stripped . | . . . . . Power Chain Reactions . | . . . . . Alert | -11 -10 -10 -8 -6 ------- Run | Yrd Mat Sub Rec Fac Peak Influence 649 | 5 215 . 649 122 Initial 412 | . 3 . 412 23 Average 144 | 1 88 . 290 74 Maximum Alert Level 2 | . 1 . 2 . Low Security (%) 81 | 100 86 . 60 100 Level 1 8 | . 13 . 7 . Level 2 9 | . . . 31 . Level 3 . | . . . . . Level 4 . | . . . . . Level 5 . | . . . . . High Security . | . . . . . Max Security . | . . . . . Squads Dispatched 3 | . 1 . . 2 Investigation . | . . . . . Extermination 1 | . . . . 1 Reinforcement 2 | . 1 . . 1 Assault . | . . . . . Garrison . | . . . . . Intercept . | . . . . . Searches Triggered . | . . . . . Construction Impeded . | . . . . . Haulers Reinforced . | . . . . . Active Scanning Responses . | . . . . . Cargo Convoy Interrupts . | . . . . . Stealth | -11 -10 -10 -8 -6 --------- Run | Yrd Mat Sub Rec Fac Distress Signals 3 | . 2 . . 1 Communications Jammed . | . . . . . Distress Signals . | . . . . . Times Spotted 76 | . 12 44 2 18 Peak Tracking Total 6 | . 3 6 2 3 Tactical Retreats 7 | . . 3 . 4 Traps | -11 -10 -10 -8 -6 ------- Run | Yrd Mat Sub Rec Fac Traps Triggered 2 | . 2 . . . Indirectly . | . . . . . Trap Hack Attempts . | . . . . . Triggered . | . . . . . Disarmed . | . . . . . Reprogrammed . | . . . . . Reused . | . . . . . Traps Extracted . | . . . . . Installed . | . . . . . Triggered . | . . . . . Machines | -11 -10 -10 -8 -6 ---------- Run | Yrd Mat Sub Rec Fac Machines Disabled 11 | . 3 2 5 1 Max in Single Turn 2 | . 1 1 2 1 Machines Repaired . | . . . . . Machines Dismantled . | . . . . . Machines Sabotaged . | . . . . . Overloaded Fab Kills . | . . . . . Hacking | -11 -10 -10 -8 -6 --------- Run | Yrd Mat Sub Rec Fac Machines Accessed 9 | . 5 . 4 . Terminals 9 | . 5 . 4 . Fabricators . | . . . . . Repair Stations . | . . . . . Recycling Units . | . . . . . Scanalyzers . | . . . . . Garrison Access . | . . . . . Total Hacks 26 | . 13 . 13 . Successful 14 | . 7 . 7 . Failed 12 | . 6 . 6 . Catastrophic 1 | . 1 . . . Database Lockouts . | . . . . . Manual 7 | . . . 7 . Terminals 26 | . 13 . 13 . Fabricators . | . . . . . Repair Stations . | . . . . . Recycling Units . | . . . . . Scanalyzers . | . . . . . Garrison Access . | . . . . . Terminal Hacks 14 | . 7 . 7 . Record 2 | . . . 2 . Emergency Access Points 1 | . 1 . . . Alert Level 3 | . . . 3 . Unreport Threat 2 | . . . 2 . Locate Traps 2 | . 2 . . . Maintenance Status 4 | . 4 . . . Fabricator Hacks . | . . . . . Repair Station Hacks . | . . . . . Recycling Unit Hacks . | . . . . . Scanalyzer . | . . . . . Garrison Access Hacks . | . . . . . Unauthorized Hacks . | . . . . . Terminals . | . . . . . Fabricators . | . . . . . Repair Stations . | . . . . . Recycling Units . | . . . . . Scanalyzers . | . . . . . Garrison Access . | . . . . . Data Cores Recovered . | . . . . . Used . | . . . . . Hacking Detections 6 | . 2 . 4 . Full Trace Events 1 | . 1 . . . Feedback Events . | . . . . . Feedback Blocked . | . . . . . Robot Schematics Acquired . | . . . . . Robots Built . | . . . . . Authchips . | . . . . . Time . | . . . . . Total Robot Build Rating . | . . . . . Part Schematics Acquired . | . . . . . Parts Built . | . . . . . Authchips . | . . . . . Time . | . . . . . Total Part Build Rating . | . . . . . Parts Repaired . | . . . . . Time . | . . . . . Parts Recycled . | . . . . . Recycled Matter . | . . . . . Retrieved Matter . | . . . . . Retrieved Components . | . . . . . Parts Scanalyzed . | . . . . . Part Schematics Acquired . | . . . . . Parts Damaged . | . . . . . Bothacking | -11 -10 -10 -8 -6 ------------ Run | Yrd Mat Sub Rec Fac Used RIF Installer . | . . . . . Robots Hacked . | . . . . . Non-combat . | . . . . . Combat . | . . . . . Robot Hacks Applied . | . . . . . Relay Couplers Released . | . . . . . Fabnet Peak Effective % . | . . . . . Robots Rewired . | . . . . . Allies Hacked . | . . . . . Hacks Repelled . | . . . . . Allies | -11 -10 -10 -8 -6 -------- Run | Yrd Mat Sub Rec Fac Total Allies . | . . . . . Largest Group . | . . . . . Highest-Rated Group . | . . . . . Highest-Rated Ally . | . . . . . Total Orders . | . . . . . Ally Attacks . | . . . . . Total Damage . | . . . . . Kills . | . . . . . Allies Corrupted . | . . . . . Allies Melted . | . . . . . Intel | -11 -10 -10 -8 -6 ------- Run | Yrd Mat Sub Rec Fac Robot Analysis Total . | . . . . . Derelict Logs Recovered 1 | . . 1 . . Drone Launches . | . . . . . Drone Recoveries . | . . . . . Exploration | -11 -10 -10 -8 -6 ------------- Run | Yrd Mat Sub Rec Fac Turns Passed 4930 | 111 1421 1654 1014 730 Spaces Moved 3258 | 80 926 1204 760 288 Core 191 | 7 . . . 184 Treads . | . . . . . Legs 3029 | 73 926 1204 760 66 Wheels 38 | . . . . 38 Hover . | . . . . . Flight . | . . . . . Fastest Speed 50 | 50 120 120 105 50 Average Speed 126 | 113 120 122 121 187 Slowest Speed 650 | 120 120 190 190 650 Overloaded Moves . | . . . . . Propulsion Burnouts . | . . . . . Robots Hopped . | . . . . . Cave-ins Triggered . | . . . . . Exploration Rate (%) 41 | 4 70 49 80 4 Regions Visited 4 Branch Regions 2 Pre-discovered Areas 1 | . . 1 . . Known Exits Taken . | . . . . . Unknown Exits Taken 4 | 1 1 1 1 . Scrap Searched 3 | . . 3 . . Spaces Dug 4 | . 2 2 . . Terrain Destroyed 195 | . 14 47 132 2 Melee . | . . . . . Projectile 17 | . 14 . 1 2 AOE 178 | . . 47 131 . Terrain Rammed . | . . . . . Walls Destroyed . | . . . . . Machines Disabled . | . . . . . Actions | -11 -10 -10 -8 -6 --------- Run | Yrd Mat Sub Rec Fac Total 3623 | 91 1041 1292 806 393 Wait 39 | . . . . 39 Move 3254 | 79 925 1203 759 288 Hop . | . . . . . Pick Up 19 | 2 3 9 5 . Fast Attach 27 | 7 4 4 3 9 Attach 10 | . . 4 1 5 Detach 7 | . 3 2 2 . Swap 10 | . 1 7 2 . Drop 21 | . 5 8 8 . Fire 229 | 3 98 55 25 48 Melee . | . . . . . Ram 4 | . . . . 4 Kick 3 | . 2 . 1 . Crush . | . . . . . Escape Stasis . | . . . . . Rewire . | . . . . . Trap . | . . . . . Miscellaneous . | . . . . . Route ------- -11/Scrapyard -10/Materials (discovered 4 exits: [*Mat] / [*Min x2] / [*Sub]) -10/Subcaves (discovered 2 exits: [*Mat] / *Rec) -8/Recycling -6/Factory History --------- Turn | Location | Event 23 | -11/Scrapyard | Discovered new exit (range 15) 112 | -11/Scrapyard | Entered Materials 237 | -10/Materials | Discovered new exit (range 14) 306 | -10/Materials | Build established: Mutant 492 | -10/Materials | Discovered new exit (range 15) 779 | -10/Materials | Discovered new exit (range 12) 1367 | -10/Materials | Discovered new exit (range 10) 1533 | -10/Materials | Entered Subcaves 1534 | -10/Subcaves | A swath of the cavern ceiling suddenly collapsed 1579 | -10/Subcaves | Learned location of Zion (-7) 1614 | -10/Subcaves | Ambushed by swarm of Subdwellers 1626 | -10/Subcaves | Ambushed by Subdwellers from Twisted Machinery 1663 | -10/Subcaves | Lost 3 allies 1975 | -10/Subcaves | Build established: Scavenger-Mutant 2766 | -10/Subcaves | Discovered new exit (range 14) 2791 | -10/Subcaves | Shifting Twisted Machinery released Sub. Laser 2907 | -10/Subcaves | Discovered new exit (range 16) 2936 | -10/Subcaves | Core integrity fell below 50% 3093 | -10/Subcaves | Disturbed a concealed Subdweller 3099 | -10/Subcaves | Core integrity fell below 20% 3187 | -10/Subcaves | Entered Recycling 3201 | -8/Recycling | Found Scrap Engine 3779 | -8/Recycling | Build established: Mutant 4185 | -8/Recycling | Discovered new exit (range 15) 4201 | -8/Recycling | Entered Factory 4201 | -6/Factory | Evolved 8 slots: Power x2, Propulsion x1, Utility x3, Weapon x2 4341 | -6/Factory | Lost 5 parts (1p3n1w) 4561 | -6/Factory | Build established: Tank 4642 | -6/Factory | Lost 6 parts (1p1u4w) 4800 | -6/Factory | Lost 4 parts (1p3u) 4813 | -6/Factory | Core integrity fell below 50% 4874 | -6/Factory | Build established: Mutant 4890 | -6/Factory | Core integrity fell below 20% 4931 | -6/Factory | Destroyed by Y-54 Guardian with Flak Gun Last Messages --------------- K-01 Serf collects debris. G-50 Soldier heat damages Carbon-fiber Leg. Mic. Nuclear Core destroyed. G-50 Soldier heat damages core (-11). Destroyed Lgt. Angular Momentum Engine. G-50 Soldier destroyed. K-01 Serf collects debris. G-50 Soldier destroyed. Cld. Particle Cannon destroyed. R-10 Processor collects Adv. Heat Sink. R-10 Processor collects Carbon-fiber Leg. U-05 Engineer builds a Door. Acquired Target Analyzer. U-05 Engineer builds a Wall. Acquired Com. Wheel. Com. Wheel destroyed. Acquired Angular Momentum Engine. System corrupted: Component data lost. Slammed into Y-54 Guardian. System corrupted: Heat flow error (+278). Map ----- +----------------------------------------------------+ | ?????????????????????????????????? | | ?????????????????????????????????? | | ?????????????????????????????????? | | ?????????????????????????????????? | | ?????????????????????????????????? | | ?????????????????????????????????? | | ?????????????????????????????????? | | ?????????????????????????????????? | | ?????????????????????????????????? | | ?????????????????????????????????? | | ????????????????? ????????????? | | ???????????????# #???????????? | | ???????????????# #???????????? | | ???????????????# #???????????? | | ???????????????# #???????????? | | ???????????????# #???????????? | | ################ #???????????? | | # ! # %#???????????? | | #" # ############# | | #"" # %# !! | | #"" # """""" # """ !! | | #"" # """"""" # """ !! | | #"" # """""" # """ | | #"T # """" " # | | #"" # # """ """ | | #"" /@Y % %+ """ """ | | #"" # # """ """ | | #"" # # | | #" # #### ### "" "" | | # # #??# #?# ""F"" | | # """ # #??# #?# """ | | # """ # #??#%#?############# | | # """ # #??# #?????????????? | | # # ####+#########?????? | | ######### # #?????? | | ????????# # #?????? | | ????????# # #?????? | | ????????# # #?????? | | ????????# # #?????? | | ????????# # #?????? | | ????????# + #?????? | | ????????# # #?????? | | ????????# # #?????? | | ??????### # #?????? | | ??????# # #?????? | | ??????# # #?????? | | ??????# ##############?????? | | ??????# #??????????????????? | | ??????# #??????????????????? | | ??????####+#####?????????????????? | +----------------------------------------------------+ Best States ------------- Heat Dissipation 65 Energy Generation 24 Energy Capacity 300 Matter Stores 300 Matter Capacity 300 Sight Range 21 Terrain Scan Density 10 Armor Coverage 800 Evasion (%) 55 Target Analysis 5 Item Schematics ----------------- None Robot Schematics ------------------ None Fabricated ------------ Nothing Alien Tech Used ----------------- None Achievements -------------- None Challenges ------------ None Game ------ Seed PhysicsSpreadRay Manual? 0 Play Time 00:44:10 Cumulative 4.7 hours Start 2024.04.05 @ 20:49:49 End 2024.04.05 @ 21:29:43 Sessions 1 Manual Loads 0 Difficulty Rogue Special Mode None Game No. 9 Rogue 9 Adventurer 0 Explorer 0 Win Type - Total 0 Types 0/0/0/0/0/0/0/0/0 Lore% 2 Gallery% 12 Achievement% 11 Wizard Run 0 Options --------- Layout 1 ASCII 0 Keyboard 0 Movement Arrows Keybinds 0 Fullscreen 1 Font 24/Smallcaps Map View 50x35 Zoom Use 0% Tactical HUD 0 Map Filters NONE Filters NONE Steam 1 RUN: 409f8560-6fd6-4474-a0ea-3575e85642e2